[Event "Early-Titled-Tuesday-Blitz-February-27-2024"]
[Site "Chess.com"]
[Date "2024.02.27"]
[Round "4"]
[White "conformalfunction"]
[Black "viktorskliarov"]
[Result "0-1"]
[WhiteElo "2384"]
[BlackElo "2586"]
[TimeControl "180+1"]
[EndTime "8:38:40 PST"]
[Termination "viktorskliarov won on time"]

1. e4 {[%clk 0:03:00.9]} 1... c5 {[%clk 0:02:58.9]} 2. Nf3 {[%clk 0:02:59]} 2...
Nc6 {[%clk 0:02:59.2]} 3. Bb5 {[%clk 0:02:53]} 3... e6 {[%clk 0:02:59.4]} 4.
Bxc6 {[%clk 0:02:50.2]} 4... bxc6 {[%clk 0:03:00.3]} 5. b3 {[%clk 0:02:49.8]}
5... Ne7 {[%clk 0:03:00.2]} 6. Bb2 {[%clk 0:02:49.8]} 6... Ng6 {[%clk
0:02:57.2]} 7. h4 {[%clk 0:02:40.9]} 7... h5 {[%clk 0:02:56.8]} 8. d3 {[%clk
0:02:35.5]} 8... f6 {[%clk 0:02:52.2]} 9. g3 {[%clk 0:02:30.5]} 9... Ba6 {[%clk
0:02:38.4]} 10. Nbd2 {[%clk 0:02:30.4]} 10... Qc7 {[%clk 0:02:34.6]} 11. Qe2
{[%clk 0:02:28.5]} 11... Bd6 {[%clk 0:02:26.1]} 12. Nc4 {[%clk 0:02:11.7]} 12...
Bxc4 {[%clk 0:02:24.4]} 13. dxc4 {[%clk 0:02:06.2]} 13... Ne5 {[%clk 0:02:18.8]}
14. O-O-O {[%clk 0:01:56.1]} 14... a5 {[%clk 0:02:06.8]} 15. Kb1 {[%clk
0:01:54.4]} 15... a4 {[%clk 0:02:03.5]} 16. Nxe5 {[%clk 0:01:24.6]} 16... Bxe5
{[%clk 0:02:02.2]} 17. Bxe5 {[%clk 0:01:24.6]} 17... Qxe5 {[%clk 0:02:01.2]} 18.
f4 {[%clk 0:01:22.3]} 18... Qc7 {[%clk 0:01:43.2]} 19. Rhe1 {[%clk 0:01:08.6]}
19... Ke7 {[%clk 0:01:29]} 20. e5 {[%clk 0:01:07.9]} 20... f5 {[%clk 0:01:26.5]}
21. Qe3 {[%clk 0:01:02.5]} 21... Qa7 {[%clk 0:01:17.4]} 22. Re2 {[%clk
0:00:56.4]} 22... Rhb8 {[%clk 0:01:13.5]} 23. Qd3 {[%clk 0:00:51.4]} 23... Qc7
{[%clk 0:01:00.8]} 24. Qd6+ {[%clk 0:00:38.6]} 24... Qxd6 {[%clk 0:01:00.6]} 25.
Rxd6 {[%clk 0:00:39.5]} 25... Ra7 {[%clk 0:00:47.3]} 26. Kb2 {[%clk 0:00:30.5]}
26... g6 {[%clk 0:00:45.5]} 27. Re3 {[%clk 0:00:24.7]} 27... Rbb7 {[%clk
0:00:40.9]} 28. Rd1 {[%clk 0:00:24.6]} 28... Rb8 {[%clk 0:00:39.1]} 29. Rdd3
{[%clk 0:00:17.4]} 29... a3+ {[%clk 0:00:33.9]} 30. Kc3 {[%clk 0:00:17.2]} 30...
Rb4 {[%clk 0:00:34.4]} 31. Kd2 {[%clk 0:00:15.5]} 31... Rab7 {[%clk 0:00:31.7]}
32. Kc3 {[%clk 0:00:14.7]} 32... Ra7 {[%clk 0:00:32]} 33. Re1 {[%clk 0:00:14.9]}
33... Rab7 {[%clk 0:00:31.9]} 34. Red1 {[%clk 0:00:15.5]} 34... Ra7 {[%clk
0:00:32.3]} 35. R3d2 {[%clk 0:00:16]} 35... Rab7 {[%clk 0:00:32.5]} 36. Kd3
{[%clk 0:00:16.4]} 36... Ra7 {[%clk 0:00:32.8]} 37. Rb1 {[%clk 0:00:16.9]} 37...
Rab7 {[%clk 0:00:32.6]} 38. Ke2 {[%clk 0:00:17.4]} 38... Ke8 {[%clk 0:00:31.9]}
39. Rd3 {[%clk 0:00:17.7]} 39... Ke7 {[%clk 0:00:31.9]} 40. Kd2 {[%clk
0:00:18.2]} 40... Ke8 {[%clk 0:00:19.6]} 41. Kd1 {[%clk 0:00:16.8]} 41... Rxc4
{[%clk 0:00:13.9]} 42. Kd2 {[%clk 0:00:16.6]} 42... Rcb4 {[%clk 0:00:12.4]} 43.
Rd1 {[%clk 0:00:05.5]} 43... c4 {[%clk 0:00:10.6]} 44. Rd4 {[%clk 0:00:04.8]}
44... cxb3 {[%clk 0:00:09.7]} 45. Rxb4 {[%clk 0:00:03.3]} 45... Rxb4 {[%clk
0:00:10.3]} 46. cxb3 {[%clk 0:00:02.5]} 46... Ke7 {[%clk 0:00:09]} 47. Kc3
{[%clk 0:00:02.1]} 47... Re4 {[%clk 0:00:09.2]} 48. Rd3 {[%clk 0:00:02]} 48...
c5 {[%clk 0:00:09]} 0-1

[Event "Early-Titled-Tuesday-Blitz-February-27-2024"]
[Site "Chess.com"]
[Date "2024.02.27"]
[Round "4"]
[White "ArtemDyachuk"]
[Black "kuba2006"]
[Result "1-0"]
[WhiteElo "2697"]
[BlackElo "2453"]
[TimeControl "180+1"]
[EndTime "8:38:42 PST"]
[Termination "ArtemDyachuk won by checkmate"]

1. d4 {[%clk 0:03:00.9]} 1... Nf6 {[%clk 0:02:56.1]} 2. Nf3 {[%clk 0:03:00]}
2... e6 {[%clk 0:02:53.9]} 3. g3 {[%clk 0:02:59.2]} 3... c5 {[%clk 0:02:52.7]}
4. Bg2 {[%clk 0:02:59.2]} 4... Nc6 {[%clk 0:02:47.6]} 5. O-O {[%clk 0:02:58]}
5... d5 {[%clk 0:02:46.4]} 6. b3 {[%clk 0:02:56.1]} 6... Be7 {[%clk 0:02:38.2]}
7. Bb2 {[%clk 0:02:55.8]} 7... O-O {[%clk 0:02:38]} 8. e3 {[%clk 0:02:55.3]}
8... Ne4 {[%clk 0:02:24.5]} 9. Qe2 {[%clk 0:02:54.6]} 9... f5 {[%clk 0:02:22.4]}
10. c4 {[%clk 0:02:52.8]} 10... b6 {[%clk 0:02:17.5]} 11. cxd5 {[%clk
0:02:49.9]} 11... exd5 {[%clk 0:02:18.4]} 12. Rd1 {[%clk 0:02:49]} 12... Be6
{[%clk 0:02:17]} 13. dxc5 {[%clk 0:02:43.1]} 13... bxc5 {[%clk 0:02:15.4]} 14.
Nc3 {[%clk 0:02:43.5]} 14... Qd7 {[%clk 0:02:05.4]} 15. Rac1 {[%clk 0:02:41.5]}
15... Rad8 {[%clk 0:01:52.4]} 16. Na4 {[%clk 0:02:23.1]} 16... Qb7 {[%clk
0:01:41.4]} 17. Nd2 {[%clk 0:02:22.3]} 17... Nb4 {[%clk 0:01:12.1]} 18. a3
{[%clk 0:02:06.2]} 18... Na6 {[%clk 0:01:10.3]} 19. Nc3 {[%clk 0:01:44.4]} 19...
Bf6 {[%clk 0:00:53.5]} 20. Na4 {[%clk 0:01:30.6]} 20... Bxb2 {[%clk 0:00:43.4]}
21. Nxb2 {[%clk 0:01:27.9]} 21... c4 {[%clk 0:00:29.4]} 22. Bf1 {[%clk
0:01:09.3]} 22... cxb3 {[%clk 0:00:24.1]} 23. Qxa6 {[%clk 0:01:08.1]} 23... Qe7
{[%clk 0:00:23.1]} 24. Nf3 {[%clk 0:01:04.2]} 24... f4 {[%clk 0:00:20.2]} 25.
exf4 {[%clk 0:00:59.9]} 25... Bg4 {[%clk 0:00:20]} 26. Ne5 {[%clk 0:00:59.9]}
26... Bxd1 {[%clk 0:00:19.1]} 27. Rxd1 {[%clk 0:01:00.8]} 27... Nc3 {[%clk
0:00:17.4]} 28. Re1 {[%clk 0:00:59.6]} 28... Qc5 {[%clk 0:00:15]} 29. Qe6+
{[%clk 0:00:54.4]} 29... Kh8 {[%clk 0:00:14.1]} 30. Nf7+ {[%clk 0:00:52.4]}
30... Rxf7 {[%clk 0:00:14.2]} 31. Qxf7 {[%clk 0:00:53.3]} 31... Ne4 {[%clk
0:00:14.6]} 32. Nd3 {[%clk 0:00:53.1]} 32... Qc3 {[%clk 0:00:14.6]} 33. Qe7
{[%clk 0:00:48.3]} 33... Rc8 {[%clk 0:00:14.6]} 34. Rb1 {[%clk 0:00:37.1]} 34...
Nd2 {[%clk 0:00:13.5]} 35. Rc1 {[%clk 0:00:35.9]} 35... Qxc1 {[%clk 0:00:13.3]}
36. Nxc1 {[%clk 0:00:31.2]} 36... b2 {[%clk 0:00:13.8]} 37. Nb3 {[%clk
0:00:23.7]} 37... Nf3+ {[%clk 0:00:07.8]} 38. Kg2 {[%clk 0:00:23.2]} 38... b1=Q
{[%clk 0:00:08.4]} 39. Nc5 {[%clk 0:00:19]} 39... Ne1+ {[%clk 0:00:06.6]} 40.
Kg1 {[%clk 0:00:16.1]} 40... Qc1 {[%clk 0:00:05.5]} 41. Ne6 {[%clk 0:00:12.2]}
41... Nf3+ {[%clk 0:00:04.9]} 42. Kg2 {[%clk 0:00:12.5]} 42... Qc3 {[%clk
0:00:04.6]} 43. Nd8 {[%clk 0:00:09.1]} 43... Ne1+ {[%clk 0:00:04.4]} 44. Kh3
{[%clk 0:00:08.5]} 44... g6 {[%clk 0:00:02.3]} 45. Qf8# {[%clk 0:00:08.2]} 1-0

[Event "Early-Titled-Tuesday-Blitz-February-27-2024"]
[Site "Chess.com"]
[Date "2024.02.27"]
[Round "4"]
[White "NM_Antelacus"]
[Black "bescmelasti"]
[Result "1/2-1/2"]
[WhiteElo "2260"]
[BlackElo "2646"]
[TimeControl "180+1"]
[EndTime "8:38:44 PST"]
[Termination "Game drawn - insufficient material"]

1. e4 {[%clk 0:03:00.9]} 1... c5 {[%clk 0:03:00]} 2. Nf3 {[%clk 0:03:00.9]} 2...
e6 {[%clk 0:03:00.6]} 3. c3 {[%clk 0:02:59.8]} 3... d5 {[%clk 0:03:00.4]} 4. e5
{[%clk 0:03:00.2]} 4... Nc6 {[%clk 0:03:00.1]} 5. d4 {[%clk 0:02:59.5]} 5... Bd7
{[%clk 0:03:01]} 6. a3 {[%clk 0:02:57.6]} 6... c4 {[%clk 0:02:48]} 7. Be2 {[%clk
0:02:55.9]} 7... Na5 {[%clk 0:02:45.7]} 8. Nbd2 {[%clk 0:02:53]} 8... Ne7 {[%clk
0:02:44.6]} 9. O-O {[%clk 0:02:52.3]} 9... Nc8 {[%clk 0:02:40.8]} 10. Ne1 {[%clk
0:02:50.3]} 10... Nb6 {[%clk 0:02:38.8]} 11. Bg4 {[%clk 0:02:40.9]} 11... h5
{[%clk 0:02:29]} 12. Bh3 {[%clk 0:02:30.5]} 12... g5 {[%clk 0:02:28]} 13. g3
{[%clk 0:02:29.7]} 13... Be7 {[%clk 0:02:20.7]} 14. f4 {[%clk 0:02:28.8]} 14...
g4 {[%clk 0:02:13.3]} 15. Bg2 {[%clk 0:02:27.5]} 15... Qc7 {[%clk 0:01:59.6]}
16. Qe2 {[%clk 0:02:26.6]} 16... O-O-O {[%clk 0:01:55.3]} 17. Nc2 {[%clk
0:02:26.4]} 17... f5 {[%clk 0:01:49.2]} 18. exf6 {[%clk 0:02:23]} 18... Bxf6
{[%clk 0:01:49.4]} 19. Ne3 {[%clk 0:02:21.6]} 19... Qd6 {[%clk 0:01:30.4]} 20.
Re1 {[%clk 0:02:18.7]} 20... Rde8 {[%clk 0:01:27.2]} 21. Ndf1 {[%clk 0:02:13.2]}
21... Nb3 {[%clk 0:01:24.4]} 22. Rb1 {[%clk 0:02:13.5]} 22... Kb8 {[%clk
0:01:06.7]} 23. Nd2 {[%clk 0:02:13]} 23... Nxd4 {[%clk 0:00:49.4]} 24. cxd4
{[%clk 0:02:09.7]} 24... Bxd4 {[%clk 0:00:50.3]} 25. Nf1 {[%clk 0:02:01.2]}
25... h4 {[%clk 0:00:35.7]} 26. Bd2 {[%clk 0:01:55.6]} 26... hxg3 {[%clk
0:00:27.5]} 27. hxg3 {[%clk 0:01:55.2]} 27... e5 {[%clk 0:00:27.7]} 28. Bc3
{[%clk 0:01:46.3]} 28... Bxe3+ {[%clk 0:00:13.1]} 29. Nxe3 {[%clk 0:01:27.6]}
29... d4 {[%clk 0:00:14]} 30. fxe5 {[%clk 0:01:26.8]} 30... Rxe5 {[%clk
0:00:12.9]} 31. Rbd1 {[%clk 0:01:24.8]} 31... Qh6 {[%clk 0:00:07]} 32. Rxd4
{[%clk 0:01:16]} 32... Qh2+ {[%clk 0:00:06.4]} 33. Kf1 {[%clk 0:01:16.1]} 33...
Rf8+ {[%clk 0:00:06.4]} 34. Rf4 {[%clk 0:01:15.9]} 34... Rxf4+ {[%clk
0:00:03.9]} 35. gxf4 {[%clk 0:01:15.8]} 35... Qxf4+ {[%clk 0:00:03.5]} 36. Qf2
{[%clk 0:01:15.7]} 36... Re4 {[%clk 0:00:01.2]} 37. Qxf4+ {[%clk 0:01:12.3]}
37... Rxf4+ {[%clk 0:00:02.1]} 38. Ke2 {[%clk 0:01:08.3]} 38... Rf7 {[%clk
0:00:02.1]} 39. Be5+ {[%clk 0:01:07.5]} 39... Kc8 {[%clk 0:00:01.9]} 40. Rf1
{[%clk 0:01:06.9]} 40... Re7 {[%clk 0:00:02.5]} 41. Bd4 {[%clk 0:01:02.8]} 41...
Bc6 {[%clk 0:00:02.5]} 42. Bxc6 {[%clk 0:01:01.6]} 42... bxc6 {[%clk 0:00:03.4]}
43. Rg1 {[%clk 0:00:59.4]} 43... Re4 {[%clk 0:00:02.7]} 44. Bxb6 {[%clk
0:00:57.5]} 44... axb6 {[%clk 0:00:02]} 45. Rxg4 {[%clk 0:00:57.4]} 45... Rxg4
{[%clk 0:00:01.9]} 46. Nxg4 {[%clk 0:00:56.9]} 46... Kc7 {[%clk 0:00:02.7]} 47.
Kd2 {[%clk 0:00:56.2]} 47... Kd6 {[%clk 0:00:02.2]} 48. Kc3 {[%clk 0:00:56.3]}
48... Kc5 {[%clk 0:00:03.1]} 49. Ne5 {[%clk 0:00:53.1]} 49... b5 {[%clk
0:00:04]} 50. Nd7+ {[%clk 0:00:52.8]} 50... Kd6 {[%clk 0:00:04.5]} 51. Nf6
{[%clk 0:00:52.8]} 51... Kc5 {[%clk 0:00:05.4]} 52. Ne4+ {[%clk 0:00:52.5]}
52... Kd5 {[%clk 0:00:05.8]} 53. Nd2 {[%clk 0:00:50.9]} 53... Kc5 {[%clk
0:00:06.7]} 54. Ne4+ {[%clk 0:00:41.2]} 54... Kd5 {[%clk 0:00:05.8]} 55. Nf6+
{[%clk 0:00:41]} 55... Kc5 {[%clk 0:00:06.7]} 56. Ne8 {[%clk 0:00:39.1]} 56...
Kb6 {[%clk 0:00:03.6]} 57. Kd4 {[%clk 0:00:38.5]} 57... Ka5 {[%clk 0:00:03]} 58.
Kc5 {[%clk 0:00:37.5]} 58... Ka4 {[%clk 0:00:03.4]} 59. Kxc6 {[%clk 0:00:36.7]}
59... b4 {[%clk 0:00:03]} 60. axb4 {[%clk 0:00:35.3]} 60... Kxb4 {[%clk
0:00:03.9]} 61. Nd6 {[%clk 0:00:32.8]} 61... c3 {[%clk 0:00:04]} 62. bxc3+
{[%clk 0:00:31.8]} 62... Kxc3 {[%clk 0:00:04.9]} 1/2-1/2

[Event "Early-Titled-Tuesday-Blitz-February-27-2024"]
[Site "Chess.com"]
[Date "2024.02.27"]
[Round "4"]
[White "ploxoi"]
[Black "Rurep26"]
[Result "1/2-1/2"]
[WhiteElo "2465"]
[BlackElo "2696"]
[TimeControl "180+1"]
[EndTime "8:38:45 PST"]
[Termination "Game drawn by repetition"]

1. d4 {[%clk 0:02:54.6]} 1... Nf6 {[%clk 0:02:59.1]} 2. c4 {[%clk 0:02:54.8]}
2... e6 {[%clk 0:02:59.1]} 3. g3 {[%clk 0:02:55.1]} 3... Bb4+ {[%clk 0:02:59]}
4. Bd2 {[%clk 0:02:54.9]} 4... Qe7 {[%clk 0:02:59.9]} 5. Bg2 {[%clk 0:02:54.8]}
5... Bxd2+ {[%clk 0:02:59.1]} 6. Qxd2 {[%clk 0:02:54.8]} 6... d6 {[%clk
0:03:00]} 7. Nc3 {[%clk 0:02:54.4]} 7... O-O {[%clk 0:02:59.9]} 8. Nf3 {[%clk
0:02:34.4]} 8... e5 {[%clk 0:02:59.8]} 9. O-O {[%clk 0:02:25]} 9... Nc6 {[%clk
0:02:54.5]} 10. h3 {[%clk 0:02:12.2]} 10... Re8 {[%clk 0:02:43.6]} 11. e4 {[%clk
0:02:10.3]} 11... h6 {[%clk 0:02:31.9]} 12. Rfe1 {[%clk 0:02:08.5]} 12... Bd7
{[%clk 0:02:27.7]} 13. Rad1 {[%clk 0:02:03.5]} 13... Nh7 {[%clk 0:02:07.6]} 14.
dxe5 {[%clk 0:01:46.2]} 14... Nxe5 {[%clk 0:02:08.5]} 15. Nxe5 {[%clk
0:01:38.7]} 15... Qxe5 {[%clk 0:02:09.4]} 16. Qd4 {[%clk 0:01:38.7]} 16... Qxd4
{[%clk 0:02:03.9]} 17. Rxd4 {[%clk 0:01:38]} 17... Ng5 {[%clk 0:02:02.4]} 18. f4
{[%clk 0:01:23.5]} 18... Ne6 {[%clk 0:01:46.3]} 19. Rd2 {[%clk 0:01:19.3]} 19...
Bc6 {[%clk 0:01:45]} 20. Kf2 {[%clk 0:01:16.3]} 20... a5 {[%clk 0:01:43.5]} 21.
b3 {[%clk 0:01:12.5]} 21... Nc5 {[%clk 0:01:43.3]} 22. Re3 {[%clk 0:01:08]}
22... g5 {[%clk 0:01:36.1]} 23. Nd5 {[%clk 0:00:56.8]} 23... Bxd5 {[%clk
0:01:34.9]} 24. exd5 {[%clk 0:00:56.5]} 24... Rxe3 {[%clk 0:01:32.3]} 25. Kxe3
{[%clk 0:00:57.4]} 25... Re8+ {[%clk 0:01:31]} 26. Kf2 {[%clk 0:00:56.2]} 26...
Kg7 {[%clk 0:01:18.8]} 27. Rd4 {[%clk 0:00:47.7]} 27... Kf6 {[%clk 0:01:05.9]}
28. Bf3 {[%clk 0:00:46.5]} 28... Kf5 {[%clk 0:00:54.1]} 29. Bd1 {[%clk 0:00:20]}
29... Kf6 {[%clk 0:00:36.9]} 30. Bc2 {[%clk 0:00:19.8]} 30... Kg7 {[%clk
0:00:36.6]} 31. Bb1 {[%clk 0:00:14.4]} 31... Nd7 {[%clk 0:00:28.2]} 32. Bf5
{[%clk 0:00:13.6]} 32... Nf6 {[%clk 0:00:26.4]} 33. a3 {[%clk 0:00:13.4]} 33...
b6 {[%clk 0:00:26.1]} 34. Rd2 {[%clk 0:00:13.1]} 34... gxf4 {[%clk 0:00:24.9]}
35. gxf4 {[%clk 0:00:12.8]} 35... Ne4+ {[%clk 0:00:24.4]} 36. Bxe4 {[%clk
0:00:12.8]} 36... Rxe4 {[%clk 0:00:25.3]} 37. Kf3 {[%clk 0:00:09.5]} 37... Re1
{[%clk 0:00:25.7]} 38. Re2 {[%clk 0:00:08.6]} 38... Rc1 {[%clk 0:00:21.5]} 39.
a4 {[%clk 0:00:07.1]} 39... Kf6 {[%clk 0:00:20.6]} 40. Ke4 {[%clk 0:00:06.9]}
40... Rc3 {[%clk 0:00:19.4]} 41. Re3 {[%clk 0:00:07.4]} 41... Rxe3+ {[%clk
0:00:17.2]} 42. Kxe3 {[%clk 0:00:08.3]} 42... Kf5 {[%clk 0:00:17.5]} 43. Kf3
{[%clk 0:00:08.7]} 43... h5 {[%clk 0:00:16.6]} 44. Ke3 {[%clk 0:00:08.6]} 44...
Kf6 {[%clk 0:00:14.1]} 45. Ke4 {[%clk 0:00:09]} 45... Kg6 {[%clk 0:00:14.4]} 46.
h4 {[%clk 0:00:06.2]} 46... Kf6 {[%clk 0:00:14.6]} 47. f5 {[%clk 0:00:06.7]}
47... Kg7 {[%clk 0:00:13.9]} 48. Kf4 {[%clk 0:00:07.2]} 48... Kf6 {[%clk
0:00:14.5]} 49. Ke4 {[%clk 0:00:07.5]} 49... Ke7 {[%clk 0:00:14.9]} 50. Kf4
{[%clk 0:00:07.6]} 50... Kf6 {[%clk 0:00:15.4]} 51. Ke4 {[%clk 0:00:08.1]}
1/2-1/2

[Event "Early-Titled-Tuesday-Blitz-February-27-2024"]
[Site "Chess.com"]
[Date "2024.02.27"]
[Round "4"]
[White "PolandHussars"]
[Black "esrosenberg"]
[Result "0-1"]
[WhiteElo "2569"]
[BlackElo "2427"]
[TimeControl "180+1"]
[EndTime "8:38:45 PST"]
[Termination "esrosenberg won by checkmate"]

1. e4 {[%clk 0:03:00.9]} 1... e5 {[%clk 0:02:59.4]} 2. Bc4 {[%clk 0:02:59.1]}
2... Nf6 {[%clk 0:02:59]} 3. d3 {[%clk 0:02:57.3]} 3... Nc6 {[%clk 0:02:59]} 4.
Nf3 {[%clk 0:02:56.4]} 4... Bd6 {[%clk 0:02:52.4]} 5. c3 {[%clk 0:02:53.5]} 5...
O-O {[%clk 0:02:52]} 6. O-O {[%clk 0:02:51.9]} 6... Na5 {[%clk 0:02:52.3]} 7.
Bb5 {[%clk 0:02:51.2]} 7... c6 {[%clk 0:02:52]} 8. Ba4 {[%clk 0:02:50.3]} 8...
b5 {[%clk 0:02:45.1]} 9. Bc2 {[%clk 0:02:47.9]} 9... Nb7 {[%clk 0:02:38.4]} 10.
d4 {[%clk 0:02:41.7]} 10... Qc7 {[%clk 0:02:34.6]} 11. dxe5 {[%clk 0:02:41.1]}
11... Bxe5 {[%clk 0:02:35.1]} 12. Nxe5 {[%clk 0:02:42]} 12... Qxe5 {[%clk
0:02:35.7]} 13. f4 {[%clk 0:02:41.8]} 13... Qc5+ {[%clk 0:02:34.8]} 14. Kh1
{[%clk 0:02:39.9]} 14... d5 {[%clk 0:02:35.1]} 15. e5 {[%clk 0:02:33.6]} 15...
Ne4 {[%clk 0:02:33.8]} 16. Qf3 {[%clk 0:02:32.8]} 16... Bf5 {[%clk 0:02:27.8]}
17. Be3 {[%clk 0:02:26.7]} 17... Qe7 {[%clk 0:02:12.6]} 18. Na3 {[%clk
0:02:25.7]} 18... b4 {[%clk 0:01:59.5]} 19. g4 {[%clk 0:02:18.4]} 19... Bg6
{[%clk 0:01:33]} 20. cxb4 {[%clk 0:02:09.6]} 20... Qxb4 {[%clk 0:01:33]} 21. f5
{[%clk 0:02:09.6]} 21... Qxb2 {[%clk 0:01:32.2]} 22. fxg6 {[%clk 0:02:09.7]}
22... fxg6 {[%clk 0:01:28.7]} 23. Qe2 {[%clk 0:02:00.3]} 23... Qxa3 {[%clk
0:01:25.9]} 24. Bxe4 {[%clk 0:01:56.1]} 24... dxe4 {[%clk 0:01:25.9]} 25. Qc4+
{[%clk 0:01:56]} 25... Kh8 {[%clk 0:01:25.5]} 26. Qxe4 {[%clk 0:01:55.8]} 26...
Rae8 {[%clk 0:00:54.3]} 27. Bd4 {[%clk 0:01:43.7]} 27... Nc5 {[%clk 0:00:38.2]}
28. Bxc5 {[%clk 0:01:41.3]} 28... Qxc5 {[%clk 0:00:38.2]} 29. e6 {[%clk
0:01:36.9]} 29... Qd5 {[%clk 0:00:30.9]} 30. Qxd5 {[%clk 0:01:36.2]} 30... cxd5
{[%clk 0:00:31.8]} 31. Rxf8+ {[%clk 0:01:36.4]} 31... Rxf8 {[%clk 0:00:32.3]}
32. Rd1 {[%clk 0:01:37.1]} 32... Re8 {[%clk 0:00:21.2]} 33. Rxd5 {[%clk
0:01:36.7]} 33... Kg8 {[%clk 0:00:21.6]} 34. Rd6 {[%clk 0:01:36.8]} 34... Kf8
{[%clk 0:00:21.3]} 35. Ra6 {[%clk 0:01:36.7]} 35... Re7 {[%clk 0:00:20.6]} 36.
Kg2 {[%clk 0:01:35.7]} 36... Rb7 {[%clk 0:00:20.9]} 37. Kf3 {[%clk 0:01:35.2]}
37... Ke7 {[%clk 0:00:21.5]} 38. Ke4 {[%clk 0:01:34.5]} 38... Rb4+ {[%clk
0:00:21.9]} 39. Kd5 {[%clk 0:01:34.3]} 39... Rb5+ {[%clk 0:00:16.3]} 40. Kc6
{[%clk 0:01:29.1]} 40... Rb2 {[%clk 0:00:16.7]} 41. Rxa7+ {[%clk 0:01:28.3]}
41... Kxe6 {[%clk 0:00:17.1]} 42. Rxg7 {[%clk 0:01:25.2]} 42... Rxa2 {[%clk
0:00:14.7]} 43. Rxh7 {[%clk 0:01:25.1]} 43... Rd2 {[%clk 0:00:12.3]} 44. Kc5
{[%clk 0:01:24.6]} 44... Kf6 {[%clk 0:00:12]} 45. h4 {[%clk 0:01:23.3]} 45...
Rd1 {[%clk 0:00:07.4]} 46. Kc4 {[%clk 0:01:18.3]} 46... Rd8 {[%clk 0:00:06.8]}
47. Kc3 {[%clk 0:01:18.1]} 47... Rd1 {[%clk 0:00:06.2]} 48. Rc7 {[%clk
0:01:17.3]} 48... Rc1+ {[%clk 0:00:05.8]} 49. Kd4 {[%clk 0:01:17.6]} 49... Rxc7
{[%clk 0:00:06.7]} 50. Ke4 {[%clk 0:01:17.3]} 50... Rc4+ {[%clk 0:00:06]} 51.
Kf3 {[%clk 0:01:17.7]} 51... Ra4 {[%clk 0:00:06.2]} 52. Kg3 {[%clk 0:01:18.1]}
52... Ke5 {[%clk 0:00:06.6]} 53. h5 {[%clk 0:01:18]} 53... g5 {[%clk 0:00:07]}
54. Kf3 {[%clk 0:01:17.7]} 54... Ra3+ {[%clk 0:00:06.1]} 55. Kg2 {[%clk
0:01:17.9]} 55... Kf4 {[%clk 0:00:06.7]} 56. h6 {[%clk 0:00:40.3]} 56... Ra6
{[%clk 0:00:06.5]} 57. h7 {[%clk 0:00:39.9]} 57... Rh6 {[%clk 0:00:07]} 58. h8=R
{[%clk 0:00:39.3]} 58... Rxh8 {[%clk 0:00:07.5]} 59. Kf2 {[%clk 0:00:39.9]}
59... Rh2+ {[%clk 0:00:06.1]} 60. Kg1 {[%clk 0:00:40.1]} 60... Ra2 {[%clk
0:00:06.7]} 61. Kh1 {[%clk 0:00:40.4]} 61... Kg3 {[%clk 0:00:06.9]} 62. Kg1
{[%clk 0:00:41.3]} 62... Ra1# {[%clk 0:00:07.1]} 0-1

[Event "Early-Titled-Tuesday-Blitz-February-27-2024"]
[Site "Chess.com"]
[Date "2024.02.27"]
[Round "4"]
[White "alexrustemov"]
[Black "Fluffey"]
[Result "1-0"]
[WhiteElo "2839"]
[BlackElo "2519"]
[TimeControl "180+1"]
[EndTime "8:38:47 PST"]
[Termination "alexrustemov won on time"]

1. d4 {[%clk 0:02:57.7]} 1... Nf6 {[%clk 0:02:58.8]} 2. c4 {[%clk 0:02:55.7]}
2... d6 {[%clk 0:02:58.6]} 3. Nf3 {[%clk 0:02:55.6]} 3... g6 {[%clk 0:02:58]} 4.
Nc3 {[%clk 0:02:55.6]} 4... Bg7 {[%clk 0:02:58.6]} 5. g3 {[%clk 0:02:56.1]} 5...
O-O {[%clk 0:02:58.7]} 6. Bg2 {[%clk 0:02:56.6]} 6... c6 {[%clk 0:02:59.4]} 7.
O-O {[%clk 0:02:56]} 7... Bf5 {[%clk 0:03:00.1]} 8. b3 {[%clk 0:02:53.3]} 8...
Ne4 {[%clk 0:02:59.9]} 9. Bb2 {[%clk 0:02:53.5]} 9... Nxc3 {[%clk 0:02:59.4]}
10. Bxc3 {[%clk 0:02:53.5]} 10... c5 {[%clk 0:02:57]} 11. Qd2 {[%clk 0:02:49]}
11... Nc6 {[%clk 0:02:53.9]} 12. d5 {[%clk 0:02:38.9]} 12... Bxc3 {[%clk
0:02:52.5]} 13. Qxc3 {[%clk 0:02:39.8]} 13... Na5 {[%clk 0:02:49.8]} 14. Nd2
{[%clk 0:02:38.6]} 14... b5 {[%clk 0:02:47.2]} 15. cxb5 {[%clk 0:02:34.3]} 15...
Bd7 {[%clk 0:02:45.9]} 16. a4 {[%clk 0:02:31.9]} 16... a6 {[%clk 0:02:43.5]} 17.
bxa6 {[%clk 0:02:22.8]} 17... Rxa6 {[%clk 0:02:43]} 18. e4 {[%clk 0:02:19.9]}
18... Qb6 {[%clk 0:02:36.8]} 19. Rfe1 {[%clk 0:02:15.6]} 19... Rb8 {[%clk
0:02:31.7]} 20. Re3 {[%clk 0:02:07.5]} 20... Qb4 {[%clk 0:02:31.5]} 21. Bf1
{[%clk 0:01:33.5]} 21... Rab6 {[%clk 0:02:30.4]} 22. Qxb4 {[%clk 0:01:33.3]}
22... Rxb4 {[%clk 0:02:29.8]} 23. Ra3 {[%clk 0:01:32.5]} 23... Rd4 {[%clk
0:02:19.2]} 24. Rd3 {[%clk 0:01:29.3]} 24... Rbb4 {[%clk 0:02:13.6]} 25. Rxd4
{[%clk 0:01:18]} 25... cxd4 {[%clk 0:01:56.4]} 26. Bd3 {[%clk 0:01:12]} 26... e6
{[%clk 0:01:52.8]} 27. dxe6 {[%clk 0:01:09.9]} 27... Bxe6 {[%clk 0:01:51.8]} 28.
Bc2 {[%clk 0:00:57]} 28... Rb8 {[%clk 0:01:30.5]} 29. Kf1 {[%clk 0:00:54.8]}
29... Rc8 {[%clk 0:01:30.7]} 30. Ra2 {[%clk 0:00:49]} 30... Nc6 {[%clk
0:01:29.7]} 31. Bd1 {[%clk 0:00:35.4]} 31... Nb4 {[%clk 0:01:28.6]} 32. Ra1
{[%clk 0:00:35.6]} 32... Rc3 {[%clk 0:01:13.8]} 33. a5 {[%clk 0:00:34.1]} 33...
Bc8 {[%clk 0:01:13.5]} 34. Be2 {[%clk 0:00:32.3]} 34... d3 {[%clk 0:01:12.2]}
35. Bd1 {[%clk 0:00:29.8]} 35... Ba6 {[%clk 0:01:05.7]} 36. f4 {[%clk
0:00:29.8]} 36... d5 {[%clk 0:01:00.7]} 37. exd5 {[%clk 0:00:27.4]} 37... Nxd5
{[%clk 0:01:00.7]} 38. Kf2 {[%clk 0:00:27.9]} 38... f5 {[%clk 0:00:54.9]} 39.
Bf3 {[%clk 0:00:27.8]} 39... Nb4 {[%clk 0:00:53.5]} 40. Ra4 {[%clk 0:00:25.4]}
40... Nc2 {[%clk 0:00:41.7]} 41. Bd5+ {[%clk 0:00:25]} 41... Kf8 {[%clk
0:00:40.4]} 42. Bc4 {[%clk 0:00:25.7]} 42... Bxc4 {[%clk 0:00:32.1]} 43. Rxc4
{[%clk 0:00:25.5]} 43... Rxc4 {[%clk 0:00:28.1]} 44. Nxc4 {[%clk 0:00:25.8]}
44... Nb4 {[%clk 0:00:26.2]} 45. Ke3 {[%clk 0:00:25.3]} 45... Ke7 {[%clk
0:00:25.9]} 46. Ne5 {[%clk 0:00:23.9]} 46... Kd6 {[%clk 0:00:20.6]} 47. Nxd3
{[%clk 0:00:24.2]} 47... Nc6 {[%clk 0:00:15.9]} 48. b4 {[%clk 0:00:24.4]} 48...
Kd5 {[%clk 0:00:15.2]} 49. a6 {[%clk 0:00:22.6]} 49... Na7 {[%clk 0:00:14.6]}
50. Ne5 {[%clk 0:00:21.9]} 50... Nb5 {[%clk 0:00:10.7]} 51. Kd3 {[%clk
0:00:21.9]} 51... Na7 {[%clk 0:00:09.1]} 52. Kc3 {[%clk 0:00:22.1]} 52... Nb5+
{[%clk 0:00:07.8]} 53. Kb3 {[%clk 0:00:22.5]} 53... Kd4 {[%clk 0:00:03.2]} 54.
Ka4 {[%clk 0:00:22.4]} 54... Na7 {[%clk 0:00:03]} 55. Ka5 {[%clk 0:00:22.8]}
55... Ke3 {[%clk 0:00:01.9]} 56. Kb6 {[%clk 0:00:22.8]} 1-0